fUST/lending_fUST_20240815
["ID","MTS","AMOUNT","RATE_DAILY","PERIOD"]
[335003520,1723720322755,194.42537163,9.9e-05,2]
[335003604,1723721432958,-850.51877308,0.00010958,2]
[335003606,1723721432967,-2387.57878346,0.000125,2]
[335003608,1723721432977,-1440.25898405,0.00013305,2]
[335003610,1723721432987,-154.79103211,0.00014,2]
[335003612,1723721432997,-750.0,0.00014247,2]
[335003614,1723721433006,-5704.2810486,0.00014313,2]
[335003616,1723721433016,-3000.0,0.00014745,2]
[335003618,1723721433026,-300.0,0.00014999,2]
[335003620,1723721433036,-782.12449386,0.00015,2]
[335003622,1723721433047,-154.80649189,0.00015,2]
[335003624,1723721433057,-155.00357971,0.00015,2]
[335003627,1723721433067,-247.45631739,0.00016,2]
[335003629,1723721433077,-73.58588885,0.00017624,2]
[335003683,1723721439531,-1554.0,0.00017624,2]
[335003720,1723721440106,-1572.41411115,0.00017624,2]
[335003722,1723721440115,-150.0,0.00017624,2]
[335003724,1723721440125,-3354.68958522,0.00017898,2]
[335003764,1723721897471,3656.31,0.00027,120]
[335003879,1723722646310,-850.51877308,0.00012551,2]
[335003880,1723722646320,-402.51068489,0.00013792,2]
[335003881,1723722646331,-154.80649189,0.0001405,2]
[335003882,1723722646342,-187.5,0.00014247,2]
[335003883,1723722646354,-712.5,0.00014247,2]
[335003884,1723722646363,-3000.0,0.00017742,2]
[335003885,1723722646374,-16486.37133098,0.00017898,2]
[335003886,1723722646383,-253.422,0.00018382,2]
[335003887,1723722646394,-150.452,0.00018382,2]
[335003888,1723722646404,-244.3,0.00018382,2]
[335003889,1723722646414,-290.614392,0.00019178,2]
[335003890,1723722646424,-251.0,0.00019178,2]
[335003891,1723722646434,-152.36686117,0.0001975,2]
[335003892,1723722646445,-300.50416595,0.0002,2]
[335003893,1723722646455,-4685.18959048,0.00020156,2]
[335003894,1723722646466,-10061.46199701,0.00020199,2]
[335003895,1723722646476,-782.12449386,0.00020224,2]
[335003896,1723722646486,-712.5,0.00020707,2]
[335003897,1723722646496,-157.14199098,0.000212,30]
[335003898,1723722646505,-152.36686117,0.0002175,2]
[335003899,1723722646515,-154.80649189,0.00021935,2]
[335003900,1723722646524,-4355.58953354,0.00022,30]
[335003901,1723722646534,-154.80649189,0.00022,2]
[335003902,1723722646543,-302.63687509,0.00022,2]
[335003903,1723722646554,-302.63687509,0.00022,2]
[335003904,1723722646570,-2131.0749613,0.00022099,2]
[335003905,1723722646581,-302.63687509,0.0002222,2]
[335003906,1723722646591,-302.63687509,0.0002222,2]
[335003907,1723722646602,-195.33037482,0.00022299,2]
[335003908,1723722646612,-154.80649189,0.00022399,2]
[335003909,1723722646622,-1693.73162248,0.00022439,2]
[335003910,1723722646632,-302.63687509,0.0002244,2]
[335003911,1723722646644,-302.63687509,0.0002244,2]
[335003912,1723722646655,-532.66813962,0.00022521,2]
[335003913,1723722646664,-302.63687509,0.0002266,2]
[335003914,1723722646675,-302.63687509,0.0002266,2]
[335003915,1723722646684,-302.63687509,0.0002288,2]
[335003916,1723722646698,-302.63687509,0.0002288,2]
[335003917,1723722646708,-1000.0,0.00023,2]
[335003918,1723722646719,-151.0,0.00023,7]
[335003919,1723722646729,-169.20621794,0.00023033,2]
[335003920,1723722646739,-1697.07031354,0.00023033,2]
[335003921,1723722646749,-453.95531264,0.000231,4]
[335003922,1723722646760,-453.95531264,0.000231,4]
[335003923,1723722646770,-150.0,0.00023299,2]
[335003924,1723722646781,-302.48573799,0.0002332,4]
[335003925,1723722646790,-151.0,0.0002332,7]
[335003926,1723722646800,-151.0,0.0002332,7]
[335003927,1723722646815,-453.95531264,0.0002332,4]
[335003928,1723722646825,-453.95531264,0.0002354,4]
[335003929,1723722646834,-5002.42508576,0.00023729,2]
[335003930,1723722646844,-5002.42508576,0.00023729,2]
[335003931,1723722646854,-151.0,0.00023736,7]
[335003932,1723722646867,-175.316629,0.00023736,7]
[335003933,1723722646877,-152.36686117,0.0002375,2]
[335003934,1723722646887,-151.0,0.0002376,7]
[335003935,1723722646898,-453.95531264,0.0002376,4]
[335003936,1723722646907,-285.31252066,0.00023885,2]
[335003937,1723722646918,-2273.37,0.000239,2]
[335003938,1723722646927,-151.0,0.000239,7]
[335003939,1723722646938,-370.22176417,0.00023906,2]
[335003940,1723722646948,-166.56656155,0.00023906,2]
[335003941,1723722646958,-166.56656155,0.00023906,2]
[335003942,1723722646967,-271.33563937,0.0002391,2]
[335003943,1723722646977,-460.47357495,0.0002391,4]
[335003944,1723722646987,-151.0,0.00023939,7]
[335003945,1723722646997,-151.0,0.00023939,7]
[335003946,1723722647007,-435.0,0.00023939,2]
[335003947,1723722647016,-172.561318,0.00023976,7]
[335003948,1723722647026,-453.95531263,0.0002398,4]
[335003949,1723722647037,-1000.0,0.00024,24]
[335003950,1723722647047,-150.0,0.00024299,2]
[335003951,1723722647193,-380.0,0.00024658,2]
[335003952,1723722647203,-151.0,0.0002492,7]
[335003953,1723722647214,-151.0,0.0002492,7]
[335003954,1723722647224,-151.0,0.0002493,7]
[335003955,1723722647234,-151.0,0.0002493,7]
[335003956,1723722647244,-151.0,0.0002494,7]
[335003957,1723722647254,-151.0,0.0002494,7]
[335003958,1723722647264,-151.0,0.0002495,7]
[335003959,1723722647274,-232.389764,0.0002495,7]
[335003960,1723722647284,-4105.00999293,0.0002496,3]
[335003961,1723722647294,-180.220887,0.0002496,7]
[335003962,1723722647304,-37755.74,0.0002496,3]
[335003963,1723722647317,-36471.33498137,0.0002497,3]
[335003964,1723722726055,273.37336231,9.9e-05,2]
[335003965,1723722741784,273.37336231,9.9e-05,2]
[335003970,1723723752152,-335.42557075,0.00012629,2]
[335003971,1723723752175,-850.51877308,0.00012782,2]
[335003972,1723723752197,-234.34404591,0.0001404,2]
[335003973,1723723752219,-167.307692,0.00014247,2]
[335003974,1723723752241,-641.25,0.00014247,2]
[335003975,1723723752268,-2913.16084785,0.00018521,2]
[335003976,1723723752291,-300.0,0.00018619,2]
[335003977,1723723752312,-300.0,0.00018619,2]
[335003978,1723723752333,-1062.35593569,0.0001862,2]
[335004019,1723723832446,-1452.74252072,0.00019018,2]
[335004021,1723723832458,-1747.25747928,0.00019018,2]
[335004023,1723723832468,-277.935,0.00019018,2]
[335004025,1723723832477,-381.93632726,0.00019177,2]
[335004369,1723723846731,-850.51877308,0.00014519,2]
[335004370,1723723846742,-3200.0,0.00019177,2]
[335004371,1723723846752,-4860.08537318,0.00019177,2]
[335004372,1723723846762,-5242.02170044,0.00019177,2]
[335004373,1723723846773,-3000.0,0.00019377,2]
[335004374,1723723846782,-167.33482158,0.00019479,2]
[335004375,1723723846792,-300.50416595,0.0002,2]
[335004376,1723723846889,-276.083672,0.00020037,2]
[335004377,1723723846920,-251.0,0.00020123,2]
[335004378,1723723846930,-641.25,0.00020707,2]
[335004379,1723723846941,-2669.8713273,0.00021034,2]
[335004380,1723723846956,-152.36686117,0.00021376,2]
[335004381,1723723846967,-4355.58953354,0.00022,30]
[335004382,1723723846978,-335.42557075,0.00022569,2]
[335004383,1723723846988,-152.36686117,0.00023376,2]
[335004384,1723723846998,-308.51813681,0.00023721,2]
[335004385,1723723847007,-167.307692,0.00024475,2]
[335004386,1723723847018,-10337.19273734,0.000246,2]
[335004387,1723723847032,-1697.07031354,0.00024657,2]
[335004388,1723723847042,-200.0,0.00024658,15]
[335004389,1723723847054,-380.0,0.00024658,2]
[335004390,1723723847064,-2606.26346968,0.00024658,2]
[335004391,1723723847073,-1693.73162248,0.00024662,2]
[335004392,1723723847084,-782.12449386,0.00024688,2]
[335004393,1723723847093,-154.80649189,0.00024688,2]
[335004394,1723723847102,-782.12449386,0.00024688,2]
[335004395,1723723847111,-2131.0749613,0.00024688,2]
[335004396,1723723847120,-154.80649189,0.00024688,2]
[335004397,1723723847130,-271.33563937,0.0002469,2]
[335004398,1723723847139,-271.33563937,0.0002469,2]
[335004399,1723723847150,-435.0,0.00024728,2]
[335004400,1723723847159,-435.0,0.00024728,2]
[335004401,1723723847168,-154.80649189,0.00024818,2]
[335004402,1723723847178,-1374.25525607,0.00024869,2]
[335004403,1723723847187,-25497.08,0.0002493,3]
[335004404,1723723847196,-151.0,0.0002494,7]
[335004405,1723723847205,-151.0,0.0002494,7]
[335004406,1723723847214,-151.0,0.0002494,7]
[335004407,1723723847223,-33764.74,0.0002494,3]
[335004408,1723723847233,-5092.25554476,0.0002494,3]
[335004409,1723723847242,-151.0,0.0002495,7]
[335004410,1723723847251,-151.0,0.0002495,7]
[335004411,1723723847260,-151.0,0.0002495,7]
[335004412,1723723847271,-151.0,0.0002495,7]
[335004413,1723723847280,-151.0,0.0002495,7]
[335004414,1723723847290,-151.0,0.0002495,7]
[335004415,1723723847299,-40517.69,0.0002495,3]
[335004416,1723723847308,-500.0,0.00024959,2]
[335004417,1723723847317,-500.0,0.00024959,2]
[335004418,1723723847326,-500.0,0.00024959,2]
[335004419,1723723847336,-500.0,0.00024959,2]
[335004420,1723723847346,-389.3065637,0.00024959,2]
[335004421,1723723847355,-500.0,0.00024959,2]
[335004422,1723723847365,-151.0,0.0002496,7]
[335004423,1723723847375,-151.0,0.0002496,7]
[335004424,1723723847385,-151.0,0.0002496,7]
[335004425,1723723847394,-151.0,0.0002496,7]
[335004426,1723723847403,-151.0,0.0002496,7]
[335004427,1723723847412,-48621.23,0.0002496,3]
[335004428,1723723847422,-151.0,0.0002496,7]
[335004429,1723723847431,-15276.7666343,0.0002496,3]
[335004430,1723723847440,-154.80649189,0.0002497,2]
[335004431,1723723847450,-60060.33541675,0.0002497,7]
[335004432,1723723966552,269.80743785,0.00014519,7]
[335004443,1723724064565,269.80743785,0.00014519,7]
[335004444,1723724165564,269.80743785,0.00014519,7]
[335004447,1723724266557,269.80743785,0.00014519,7]
[335004448,1723724354570,269.80743785,0.00014519,7]
[335004449,1723724444569,269.80743785,0.00014519,7]
[335004450,1723724566587,183.64463747,0.00014519,7]
[335004463,1723724921548,3733.84207146,0.00026,120]
[335004466,1723724926500,2967.48694121,0.00025,120]
[335004467,1723724926641,3795.39373136,0.00025,120]
[335004521,1723725033499,-200.511702,0.00012504,2]
[335004523,1723725033509,-200.511702,0.00012539,2]
[335004525,1723725033520,-200.511702,0.00012573,2]
[335004527,1723725033530,-200.511702,0.00012607,2]
[335004529,1723725033540,-200.511702,0.00012641,2]
[335004531,1723725033549,-200.511702,0.00012676,2]
[335004533,1723725033559,-850.51877308,0.00012689,2]
[335004536,1723725033573,-200.511702,0.0001271,2]
[335004538,1723725033583,-200.511702,0.00012744,2]
[335004540,1723725033593,-200.511702,0.00012779,2]
[335004542,1723725033603,-174.75672236,0.00012782,2]
[335004544,1723725033614,-200.511702,0.00012813,2]
[335004546,1723725033624,-200.511702,0.00012847,2]
[335004548,1723725033634,-200.511702,0.00012882,2]
[335004550,1723725033645,-157.07817899,0.00012898,2]
[335004552,1723725033655,-665.04001235,0.00012898,2]
[335004554,1723725033665,-200.511702,0.00012916,2]
[335004556,1723725033675,-189.9631639,0.00012934,2]
[335004558,1723725033686,-309.52024362,0.00012934,2]
[335004561,1723725033700,-309.54144274,0.00012934,2]
[335004563,1723725033710,-155.27455478,0.00012934,2]
[335004565,1723725033721,-320.1315387,0.00012934,2]
[335004567,1723725033732,-205.30859179,0.00012934,2]
[335004569,1723725033742,-200.511702,0.0001295,2]
[335004571,1723725033753,-300.0,0.0001297,2]
[335004573,1723725033763,-170.0,0.0001297,2]
[335004575,1723725033773,-157.03390899,0.00012971,2]
[335004577,1723725033784,-11.38910668,0.00012984,2]
[335004636,1723725039562,-180.63105164,0.00012934,2]
[335004637,1723725039572,-157.03390899,0.00012934,2]
[335004638,1723725039581,-196.5840757,0.00012971,2]
[335004639,1723725039591,-189.12259532,0.00012984,2]
[335004640,1723725039602,-636.72640188,0.00012985,2]
[335004641,1723725039611,-200.511702,0.00013019,2]
[335004642,1723725039621,-200.511702,0.00013053,2]
[335004643,1723725039630,-200.511702,0.00013087,2]
[335004644,1723725039641,-200.511702,0.00013122,2]
[335004645,1723725039651,-200.511702,0.00013156,2]
[335004646,1723725039660,-4610.35700344,0.00013397,2]
[335004647,1723725039673,-6589.01884789,0.00013483,2]
[335004658,1723725040895,-18290.98115211,0.00013483,2]
[335004659,1723725040905,-403.97807828,0.00013496,2]
[335004660,1723725040915,-154.85013614,0.00013597,2]
[335004661,1723725040924,-3000.0,0.00013699,2]
[335004662,1723725040933,-154.80649189,0.00013971,2]
[335004663,1723725040943,-750.0,0.00014247,2]
[335004664,1723725040952,-643.788679,0.00014247,2]
[335004665,1723725040963,-420.0,0.00014267,2]
[335004666,1723725040972,-190.0,0.00015694,2]
[335004667,1723725040982,-251.0,0.00019178,2]
[335004668,1723725040993,-4610.35700339,0.00019255,2]
[335004669,1723725041003,-156.56267046,0.0002,2]
[335004670,1723725041013,-172.5055956,0.0002,2]
[335004671,1723725041022,-1413.0,0.00020185,2]
[335004672,1723725041032,-150.0,0.00020185,2]
[335004673,1723725041041,-508.0,0.00020185,2]
[335004674,1723725041051,-532.66813962,0.0002024,2]
[335004675,1723725041061,-750.0,0.00020707,2]
[335004676,1723725041071,-643.788679,0.00020707,2]
[335004677,1723725041081,-4068.51863118,0.00022,30]
[335004678,1723725041091,-152.36686117,0.00022556,2]
[335004679,1723725041100,-5316.96955853,0.00022692,2]
[335004680,1723725041110,-5316.96955853,0.00022742,2]
[335004681,1723725041120,-5316.96955853,0.00023082,2]
[335004682,1723725041130,-5316.96955853,0.00023483,2]
[335004683,1723725041139,-5316.96955853,0.00023769,2]
[335004684,1723725041149,-4060.23205951,0.00023925,2]
[335004685,1723725041162,-1256.73749902,0.00023925,2]
[335004686,1723725041173,-8025.13447939,0.00024172,3]
[335004687,1723725041183,-1274.28192877,0.00024208,2]
[335004688,1723725041193,-5316.96955853,0.00024248,2]
[335004689,1723725041202,-151.0,0.00024308,7]
[335004690,1723725041212,-151.0,0.00024308,7]
[335004691,1723725041223,-151.0,0.0002432,7]
[335004692,1723725041232,-2606.26346968,0.00024326,2]
[335004693,1723725041242,-882.43417531,0.0002433,2]
[335004694,1723725041252,-154.80649189,0.00024349,2]
[335004695,1723725041262,-154.80649189,0.00024349,2]
[335004696,1723725041272,-782.12449386,0.00024385,2]
[335004697,1723725041282,-460.47357495,0.00024448,4]
[335004698,1723725041292,-152.36686117,0.00024556,2]
[335004699,1723725041302,-151.0,0.00024561,7]
[335004700,1723725041315,-5316.96955853,0.00024613,2]
[335004701,1723725041425,-5242.02170044,0.00024647,2]
[335004702,1723725041436,-5242.02170044,0.00024647,2]
[335004703,1723725041446,-154.80649189,0.00024657,2]
[335004704,1723725041457,-1110.29005483,0.00024657,2]
[335004705,1723725041467,-200.0,0.00024658,15]
[335004706,1723725041477,-308.51813681,0.00024662,2]
[335004707,1723725041487,-308.51813681,0.00024662,2]
[335004708,1723725041497,-435.0,0.00024662,2]
[335004709,1723725041506,-154.80649189,0.00024662,2]
[335004710,1723725041516,-203.27549486,0.00024718,3]
[335004719,1723725043911,-138.86454827,0.00013477,2]
[335004764,1723725048778,-189.9631639,0.00012898,2]
[335004766,1723725048789,-54.58314967,0.00013477,2]
[335004768,1723725048799,-661.45368643,0.00024283,2]
[335004801,1723726233399,-753.97168422,0.00010739,2]
[335004803,1723726233411,-850.51877308,0.00012551,2]
[335004806,1723726233424,-174.75672236,0.00012782,2]
[335004808,1723726233437,-174.75672236,0.00012782,2]
[335004810,1723726233450,-305.86443105,0.00012898,2]
[335004812,1723726233462,-309.52024362,0.00012898,2]
[335004813,1723726233473,-155.25873292,0.00012934,2]
[335004814,1723726233485,-569.2097652,0.00012934,2]
[335004815,1723726233497,-665.04001235,0.00012971,2]
[335004816,1723726233510,-221.42548597,0.00012971,2]
[335004817,1723726233522,-196.63865106,0.00012985,2]
[335004818,1723726233534,-543.67907992,0.00013333,2]
[335004819,1723726233554,-309.67712516,0.00013497,2]
[335004820,1723726233567,-192.30476635,0.00013597,2]
[335004821,1723726233577,-511.67780438,0.00013698,2]
[335004822,1723726233590,-8.57292295,0.00013698,2]
[335004823,1723726233601,-300.0,0.00013791,2]
[335004824,1723726233612,-240.0,0.00014246,2]
[335004825,1723726233624,-675.0,0.00014247,2]
[335004826,1723726233635,-579.409811,0.00014247,2]
[335004827,1723726233648,-11312.2537424,0.00015775,2]
[335004828,1723726233659,-3000.0,0.00016592,2]
[335004829,1723726233673,-262.279488,0.00019178,2]
[335004830,1723726233686,-251.0,0.00019178,2]
[335004831,1723726233699,-156.56267046,0.0002,2]
[335004832,1723726233713,-675.0,0.00020707,2]
[335004833,1723726233725,-579.409811,0.00020707,2]
[335004834,1723726233736,-152.36686118,0.00023202,2]
[335004835,1723726233750,-1908.94430718,0.00023809,2]
[335004843,1723726239091,-154.79103211,0.00012971,2]
[335004844,1723726239102,-150.0,0.00021282,2]
[335004845,1723726239112,-2392.96723647,0.00023809,2]
[335004846,1723726239132,-4301.91154365,0.00023892,2]
[335004847,1723726239149,-3457.76775256,0.0002403,2]
[335004848,1723726239165,-10337.19273734,0.00024139,2]
[335004849,1723726239177,-3205.9759598,0.00024183,3]
[335004850,1723726239189,-1274.28192877,0.00024183,2]
[335004851,1723726239202,-4301.91154365,0.00024239,2]
[335004852,1723726239214,-828.57,0.00024273,3]
[335004853,1723726239227,-24075.4034382,0.00024273,3]
[335004854,1723726239238,-150.0,0.00024282,2]
[335004855,1723726239251,-154.36739597,0.00024282,2]
[335004856,1723726239262,-500.0,0.00024282,2]
[335004858,1723726239274,-576.86819692,0.00024282,2]
[335004860,1723726239285,-3278.736,0.00024283,2]
[335004861,1723726239296,-171.93990209,0.00024283,2]
[335004862,1723726239313,-5026.25521516,0.00024283,2]
[335004863,1723726239329,-1944.21536927,0.00024283,2]
[335004870,1723726239952,-295.285,0.00024283,2]
[335004871,1723726239966,-12892.68720339,0.00024283,2]
[335004872,1723726239978,-27453.93958757,0.00024283,7]
[335004904,1723726243776,-369.06255427,0.00024283,7]
[335004922,1723726246303,-309.67712516,0.00013496,2]
[335004924,1723726246317,-1599.581059,0.00024283,7]
[335004926,1723726246330,-2037.35885071,0.00024283,7]
[335004928,1723726246342,-2135.67124547,0.00024283,7]
[335004930,1723726246355,-92785.88112285,0.00024283,7]
[335004931,1723726246365,-154.80649189,0.00024283,2]
[335004932,1723726246375,-155.00357971,0.00024283,2]
[335004934,1723726246385,-151.0,0.00024283,7]
[335004936,1723726246395,-5242.02170044,0.00024286,2]
[335004937,1723726246405,-154.79103211,0.0002433,2]
[335004938,1723726246415,-154.79103211,0.0002433,2]
[335004939,1723726246425,-308.51813681,0.00024379,2]
[335004940,1723726246435,-4301.91154366,0.00024449,2]
[335004941,1723726246445,-271.33563937,0.00024455,2]
[335004942,1723726246455,-504.39479182,0.00024594,2]
[335004943,1723726246466,-605.27375019,0.00024594,6]
[335004944,1723726246476,-782.12449386,0.00024657,2]
[335004945,1723726246486,-200.0,0.00024658,15]
[335004946,1723726246496,-380.0,0.00024658,2]
[335004947,1723726246506,-1110.29005483,0.00024658,2]
[335004948,1723726246517,-435.0,0.00024662,2]
[335004949,1723726246531,-2606.26346968,0.00024662,2]
[335004950,1723726246542,-151.31843755,0.00024669,2]
[335004951,1723726246553,-154.79103211,0.00024688,2]
[335004952,1723726246568,-154.79103211,0.00024688,2]
[335004953,1723726246577,-460.47357495,0.00024688,4]
[335004954,1723726246587,-154.79103211,0.00024688,2]
[335004955,1723726246597,-882.43417531,0.00024688,2]
[335004956,1723726246607,-277.52010074,0.00024728,2]
[335004957,1723726246619,-151.0,0.00024837,7]
[335004958,1723726246629,-151.0,0.00024837,7]
[335004959,1723726246641,-151.0,0.00024837,7]
[335004960,1723726246653,-504.39479182,0.0002484,2]
[335004961,1723726246662,-605.27375019,0.0002484,6]
[335004962,1723726246676,-848.53515677,0.00024969,2]
[335004963,1723726246686,-151.0,0.0002499,7]
[335004964,1723726246696,-16050.2689588,0.0002499,3]
[335004965,1723726246708,-151.0,0.0002499,7]
[335004966,1723726246722,-151.0,0.0002499,7]
[335004967,1723726246734,-151.0,0.0002499,7]
[335004968,1723726246745,-198.443352,0.0002499,7]
[335004969,1723726246758,-3511.72928253,0.00025,11]
[335004970,1723726246769,-154.79103211,0.00025,2]
[335004971,1723726246778,-17030.08267244,0.00025,30]
[335004972,1723726248116,273.37336231,9.9e-05,2]
[335004974,1723726434500,600.04166112,0.00015,4]
[335005006,1723727062107,665.04001235,9.999e-05,2]
[335005031,1723727367203,-5506.05015102,0.0001212,2]
[335005077,1723727438512,-1587.07609115,0.00012356,3]
[335005078,1723727438521,-174.75672236,0.00012782,2]
[335005079,1723727438531,-189.9631639,0.00012898,2]
[335005080,1723727438542,-300.0,0.00012933,2]
[335005081,1723727438552,-180.63105164,0.00012934,2]
[335005082,1723727438562,-585.82883324,0.00012934,2]
[335005083,1723727438573,-217.87905879,0.00012934,2]
[335005084,1723727438584,-535.1745485,0.00012934,2]
[335005085,1723727438594,-188.07021113,0.00012934,2]
[335005086,1723727438605,-223.38199524,0.00012934,2]
[335005087,1723727438615,-623.61564708,0.00012934,2]
[335005088,1723727438625,-154.79103211,0.00012934,2]
[335005089,1723727438635,-309.46615716,0.00012971,2]
[335005090,1723727438645,-210.13067206,0.00012971,2]
[335005091,1723727438655,-586.1473241,0.00013599,2]
[335005092,1723727438665,-211.8778095,0.00014039,2]
[335005093,1723727438675,-2318.2239917,0.00014148,2]
[335005094,1723727438685,-607.5,0.00014247,2]
[335005095,1723727438698,-521.468829,0.00014247,2]
[335005096,1723727438707,-250.0,0.00014521,2]
[335005097,1723727438717,-250.0,0.00014561,2]
[335005098,1723727438726,-250.0,0.000146,2]
[335005099,1723727438736,-250.0,0.0001464,2]
[335005100,1723727438746,-250.0,0.0001468,2]
[335005101,1723727438756,-250.0,0.0001472,2]
[335005102,1723727438766,-250.0,0.0001476,2]
[335005103,1723727438776,-250.0,0.000148,2]
[335005104,1723727438786,-250.0,0.0001484,2]
[335005105,1723727438796,-250.0,0.00014879,2]
[335005106,1723727438804,-250.0,0.00014919,2]
[335005107,1723727438814,-250.0,0.00014959,2]
[335005108,1723727438823,-250.0,0.00014999,2]
[335005109,1723727438832,-154.79103211,0.00015,2]
[335005110,1723727438842,-504.34442286,0.00015,2]
[335005111,1723727438851,-250.0,0.00015039,2]
[335005112,1723727438860,-250.0,0.00015079,2]
[335005113,1723727438870,-250.0,0.00015118,2]
[335005114,1723727438879,-250.0,0.00015158,2]
[335005115,1723727438888,-250.0,0.00015198,2]
[335005116,1723727438898,-250.0,0.00015238,2]
[335005117,1723727438907,-250.0,0.00015278,2]
[335005118,1723727438917,-251.0,0.00019178,2]
[335005119,1723727438928,-1019.42554304,0.000199,2]
[335005120,1723727438938,-3025.54678349,0.000199,2]
[335005121,1723727438950,-12156.5351738,0.0001999,2]
[335005122,1723727438960,-27827.02825002,0.0002,2]
[335005123,1723727438972,-12064.33357023,0.0002,2]
[335005124,1723727439002,-86490.13259962,0.0002,2]
[335005125,1723727439012,-156.56267046,0.0002,2]
[335005126,1723727439021,-607.5,0.00020707,2]
[335005127,1723727439031,-521.468829,0.00020707,2]
[335005128,1723727439044,-249.30562175,0.00022,2]
[335005129,1723727439053,-302.63687509,0.00022,2]
[335005130,1723727439063,-411.09898381,0.0002222,2]
[335005131,1723727439074,-1019.42554301,0.00022466,2]
[335005132,1723727439084,-152.36686117,0.00023269,2]
[335005133,1723727439093,-154.79103211,0.00024,2]
[335005134,1723727439102,-271.33563937,0.00024213,2]
[335005135,1723727439113,-10337.19273734,0.000246,2]
[335005136,1723727439122,-5242.02170044,0.00024647,2]
[335005137,1723727439131,-154.79103211,0.00024657,2]
[335005138,1723727439141,-200.0,0.00024658,15]
[335005139,1723727439150,-160.73794928,0.00024658,2]
[335005140,1723727439160,-258.32470101,0.00024658,2]
[335005141,1723727439169,-277.52010074,0.00024662,2]
[335005142,1723727439179,-2606.26346968,0.00024688,2]
[335005143,1723727439189,-2606.26346968,0.00024688,2]
[335005144,1723727439203,-270.84725147,0.00024688,2]
[335005145,1723727439212,-882.43417531,0.0002469,2]
[335005146,1723727439222,-1110.29005483,0.0002469,2]
[335005147,1723727439232,-3025.54678347,0.00024829,2]
[335005148,1723727439241,-12156.5351738,0.0002499,3]
[335005149,1723727439251,-848.53515677,0.00024999,2]
[335005150,1723727439261,-6196.24830913,0.00025,30]
[335005151,1723727439270,-56313.68295932,0.00025,60]
[335005152,1723727439279,-154.80649189,0.00025,2]
[335005153,1723727439290,-286.96667805,0.00025,2]
[335005154,1723727439299,-150.112234,0.00025,2]
[335005155,1723727439308,-154.79103211,0.00025,2]
[335005156,1723727439318,-151.0,0.00025,7]
[335005157,1723727439328,-151.0,0.00025,7]
[335005158,1723727439337,-151.0,0.00025,7]
[335005159,1723727439346,-151.0,0.00025,7]
[335005160,1723727439355,-151.0,0.00025,7]
[335005161,1723727439364,-162.342644,0.00025,7]
[335005162,1723727439373,-151.0,0.00025,7]
[335005163,1723727439383,-151.0,0.00025,7]
[335005164,1723727439392,-151.0,0.00025,7]
[335005165,1723727439401,-209.982378,0.00025,7]
[335005166,1723727439410,-1019.42554301,0.00025033,2]
[335005167,1723727439419,-152.36686117,0.00025269,2]
[335005168,1723727439429,-153.0,0.00026115,2]
[335005169,1723727439438,-153.0,0.00026115,2]
[335005170,1723727439450,-153.0,0.00026115,2]
[335005171,1723727439459,-153.0,0.00026115,2]
[335005172,1723727439469,-153.0,0.00026115,2]
[335005173,1723727439478,-153.0,0.00026115,2]
[335005174,1723727439487,-151.88257367,0.00026115,2]
[335005181,1723727440157,-154.87928064,0.00013596,2]
[335005182,1723727440167,-782.12449386,0.00024688,2]
[335005183,1723727440176,-1.11742633,0.00026115,2]
[335005184,1723727440185,-262.279488,0.00026388,2]
[335005185,1723727440196,-1755.86464126,0.000269,11]
[335005186,1723727440207,-2000.0,0.000269,2]
[335005187,1723727440217,-34039.86226725,0.000269,3]
[335005188,1723727440227,-151.0,0.000269,7]
[335005189,1723727440236,-151.0,0.000269,7]
[335005190,1723727440245,-151.0,0.000269,7]
[335005191,1723727440255,-151.0,0.000269,7]
[335005192,1723727440264,-200.0,0.00026973,2]
[335005194,1723727440273,-200.0,0.00026973,2]